bitfinex/quotes_SOLUSD_20251128
["timestamp","ask_amount","ask_price","bid_price","bid_amount"]
[1764348556758,3.89,139.65,139.61,2.38781176]
[1764348557052,0.71,139.64,139.61,2.38781176]
[1764348557468,0.71,139.64,139.62,2.38781176]
[1764348558059,7.8713535,139.64,139.6,0.28432314]
[1764348558254,7.87127736,139.64,139.6,0.28432314]
[1764348558490,7.87127736,139.64,139.59,15.97332075]
[1764348558491,0.71,139.63,139.59,15.97332075]
[1764348558764,0.71,139.63,139.6,0.28432314]
[1764348559064,3.89,139.65,139.62,2.38781176]
[1764348559268,7.16061041,139.66,139.63,11.48207982]
[1764348559435,3.18,139.66,139.64,11.19775668]
[1764348559755,3.89,139.66,139.64,11.19775668]
[1764348560057,3.89,139.68,139.66,0.28432314]
[1764348560265,3.18,139.68,139.67,8.80994492]
[1764348560550,3.18,139.68,139.64,2.38781176]
[1764348560759,3.18,139.68,139.65,8.80994492]
[1764348560938,0.71,139.67,139.65,8.80994492]
[1764348561543,0.71,139.67,139.66,0.28432314]
[1764348563536,7.86973365,139.67,139.64,8.80994492]
[1764348564069,0.71,139.66,139.64,0.28432314]
[1764348564643,7.8703257,139.66,139.64,0.28432314]
[1764348565872,0.71,139.66,139.64,0.28432314]
[1764348566339,7.15973365,139.67,139.64,2.6721349]
[1764348566659,0.71,139.66,139.64,2.6721349]
[1764348568137,7.87026289,139.66,139.64,2.6721349]
[1764348568647,0.71,139.65,139.64,2.6721349]
[1764348568849,0.71,139.65,139.64,0.28432314]
[1764348572464,0.71,139.65,139.62,8.80994492]
[1764348572647,7.87096728,139.65,139.63,0.28432314]
[1764348573162,0.71,139.64,139.63,0.28432314]
[1764348573953,0.71,139.66,139.63,0.28432314]
[1764348574165,0.71,139.65,139.63,0.28432314]
[1764348575047,0.71,139.65,139.6,14.66207982]
[1764348575455,3.09781176,139.65,139.6,12.27426806]
[1764348575666,0.71,139.65,139.6,14.66207982]
[1764348575856,0.66,139.64,139.63,0.28432314]
[1764348576449,7.82127184,139.64,139.63,0.28432314]
[1764348577459,0.66,139.64,139.63,0.28432314]
[1764348577657,0.66,139.66,139.63,0.28432314]
[1764348578058,7.16075904,139.65,139.62,0.28432314]
[1764348578460,7.82075904,139.65,139.62,0.28432314]
[1764348580173,0.66,139.64,139.6,9.09426806]
[1764348580586,0.66,139.64,139.6,8.80994492]
[1764348580875,0.66,139.64,139.61,0.28432314]
[1764348581380,3.04781176,139.64,139.59,8.80994492]
[1764348581551,7.16229766,139.62,139.59,8.80994492]
[1764348581748,0.66,139.63,139.6,2.38781176]
[1764348581952,0.66,139.63,139.61,0.28432314]
[1764348582250,17.90388347,139.64,139.61,0.28432314]
[1764348582462,18.56388347,139.64,139.61,0.28432314]
[1764348583254,7.16187084,139.63,139.61,0.28432314]
[1764348583463,7.16187084,139.63,139.62,0.28432314]
[1764348583667,7.16146688,139.64,139.62,0.28432314]
[1764348584556,7.82146688,139.64,139.62,0.28432314]
[1764348584759,0.66,139.63,139.62,0.28432314]
[1764348584963,0.66,139.64,139.62,9.09426806]
[1764348585483,0.66,139.64,139.61,9.09426806]
[1764348587184,7.16178471,139.63,139.61,9.09426806]
[1764348587384,7.16178471,139.63,139.6,8.80994492]
[1764348587566,0.66,139.62,139.6,8.80994492]
[1764348587969,0.66,139.62,139.61,0.28432314]
[1764348588582,7.82229766,139.62,139.61,0.28432314]
[1764348589193,7.82168956,139.64,139.61,9.09426806]
[1764348589396,0.66,139.63,139.61,9.09426806]
[1764348589971,0.66,139.63,139.61,0.28432314]
[1764348591069,7.8218688,139.63,139.61,0.28432314]
[1764348592280,7.8218688,139.63,139.6,0.28432314]
[1764348592481,0.66,139.62,139.6,0.28432314]
[1764348593188,0.66,139.63,139.6,0.28432314]
[1764348593482,7.82127184,139.64,139.6,0.28432314]
[1764348593687,0.66,139.63,139.6,0.28432314]
[1764348595182,7.82198016,139.63,139.6,0.28432314]
[1764348595390,0.66,139.62,139.6,0.28432314]
[1764348596079,3.18,139.64,139.6,2.6721349]
[1764348596269,0.66,139.62,139.6,2.6721349]
[1764348596475,0.66,139.64,139.62,9.09426806]
[1764348596671,0.66,139.64,139.62,11.48207982]
[1764348597371,0.66,139.64,139.62,18.64424718]
[1764348597788,0.66,139.64,139.62,16.25643542]
[1764348598687,7.16090504,139.65,139.62,16.25643542]
[1764348598885,7.82004811,139.67,139.64,0.28432314]
[1764348599373,7.82034787,139.66,139.64,0.28432314]
[1764348599777,0.66,139.65,139.64,0.28432314]
[1764348600288,0.66,139.65,139.61,12.73046249]
[1764348600289,3.84,139.65,139.61,8.80994492]
[1764348600490,2.38781176,139.63,139.61,8.80994492]
[1764348600691,2.38781176,139.63,139.58,8.90994492]
[1764348600879,0.66,139.62,139.58,8.90994492]
[1764348601267,0.66,139.62,139.59,9.09426806]
[1764348601579,7.16281068,139.61,139.59,9.09426806]
[1764348601765,7.16281068,139.61,139.59,0.14216157]
[1764348601967,7.82281068,139.61,139.59,0.28432314]
[1764348602788,0.66,139.6,139.59,0.14216157]
[1764348603094,0.66,139.6,139.59,0.28432314]
[1764348603689,7.82332378,139.6,139.59,0.28432314]
[1764348604402,7.82332378,139.6,139.58,0.1]
[1764348604695,0.66,139.59,139.58,0.1]
[1764348605666,7.82383695,139.59,139.58,0.1]
[1764348607684,29.4726743,139.59,139.54,0.1]
[1764348607999,3.73924498,139.57,139.54,0.24216157]
[1764348608307,6.91924498,139.57,139.54,0.1]
[1764348608481,3.73924498,139.55,139.54,0.1]
[1764348608801,3.73924498,139.55,139.49,8.80994492]
[1764348608974,3.83,139.54,139.48,0.1]
[1764348609179,3.73924498,139.53,139.48,3.83924498]
[1764348609401,4.38924498,139.53,139.48,0.1]
[1764348609584,7.16794495,139.51,139.48,9.19426806]
[1764348610085,0.65,139.5,139.48,9.19426806]
[1764348610288,3.73924498,139.49,139.48,0.1]
[1764348610476,3.73924498,139.49,139.47,0.1]
[1764348610675,16.308864,139.47,139.45,0.1]
[1764348610876,7.56924498,139.46,139.45,0.1]
[1764348611683,14.73975982,139.46,139.45,0.1]
[1764348612187,7.82051484,139.46,139.45,0.1]
[1764348612389,11.00051484,139.46,139.45,0.1]
[1764348612588,14.73975982,139.46,139.45,0.1]
[1764348614406,7.82051484,139.46,139.45,0.1]
[1764348614594,11.00051484,139.46,139.45,0.1]
[1764348615277,14.73975982,139.46,139.45,0.1]
[1764348615884,16.958864,139.48,139.45,0.1]
[1764348616221,3.18,139.47,139.45,0.1]
[1764348616515,7.56924498,139.47,139.45,0.1]
[1764348616813,0.65,139.46,139.45,0.1]
[1764348617913,7.82051484,139.46,139.45,0.1]
[1764348618484,11.55975982,139.46,139.45,0.1]
[1764348618721,7.82051484,139.46,139.45,0.1]
[1764348619013,20.46970474,139.46,139.45,0.1]
[1764348619180,16.73045976,139.46,139.45,0.1]
[1764348619382,23.64970474,139.46,139.45,0.1]
[1764348620024,23.64970474,139.46,139.44,0.1]
[1764348620025,27.38894972,139.46,139.44,0.1]
[1764348620200,3.73924498,139.39,139.38,0.1]
[1764348620521,6.91924498,139.39,139.38,0.1]
[1764348620833,16.4791899,139.39,139.38,0.1]
[1764348621332,9.55994492,139.39,139.38,0.1]
[1764348621489,81.44972612,139.46,139.38,0.1]
[1764348621685,3.73924498,139.4,139.38,0.1]
[1764348621909,7.17411579,139.39,139.38,0.1]
[1764348622108,11.56336077,139.39,139.38,0.1]
[1764348622491,17.77823544,139.39,139.38,0.1]
[1764348622697,3.18,139.39,139.38,0.1]
[1764348623018,7.17352441,139.41,139.39,8.80994492]
[1764348623220,13.23411965,139.42,139.4,0.28432314]
[1764348623392,3.18,139.42,139.4,0.28432314]
[1764348623590,7.17249086,139.43,139.41,8.80994492]
[1764348623793,3.18,139.42,139.41,9.09426806]
[1764348627408,7.17158396,139.44,139.42,0.28432314]
[1764348627608,7.17158396,139.44,139.42,10.23844279]
[1764348628324,7.17158396,139.44,139.42,0.28432314]
[1764348628325,7.82158396,139.44,139.42,0.28432314]
[1764348628796,7.82158396,139.44,139.41,8.80994492]
[1764348628797,11.00205766,139.43,139.41,8.80994492]
[1764348628996,20.95617731,139.43,139.41,0.28432314]
[1764348629196,0.65,139.42,139.41,0.28432314]
[1764348629922,0.65,139.42,139.4,0.14216157]
[1764348630798,7.82275243,139.42,139.4,0.14216157]
[1764348631301,7.82275243,139.42,139.39,18.76406457]
[1764348631496,16.308864,139.45,139.41,18.76406457]
[1764348631745,3.18,139.43,139.42,18.76406457]
[1764348631896,3.83,139.45,139.42,8.80994492]
[1764348632298,3.83,139.45,139.42,18.76406457]
[1764348632902,3.18,139.44,139.43,18.90622614]
[1764348633206,3.18,139.46,139.43,19.31622614]
[1764348633411,3.18,139.46,139.44,9.95411965]
[1764348634038,7.16965716,139.48,139.45,19.04838771]
[1764348634240,3.18,139.48,139.45,19.04838771]
[1764348634927,3.18,139.48,139.45,9.09426806]
[1764348635226,9.95411965,139.46,139.43,8.80994492]
[1764348635414,3.18,139.45,139.43,8.80994492]
[1764348635728,3.89,139.45,139.44,0.28432314]
[1764348635903,3.18,139.45,139.44,9.09426806]
[1764348637222,11.06102904,139.45,139.44,9.09426806]
[1764348637531,3.89,139.45,139.44,0.28432314]
[1764348637817,11.06108789,139.45,139.44,9.09426806]
[1764348638209,3.89,139.45,139.44,9.09426806]
[1764348638417,0.71,139.45,139.44,9.09426806]
[1764348638613,3.18,139.45,139.44,9.09426806]
[1764348640226,3.89,139.45,139.44,9.09426806]
[1764348640603,3.89,139.45,139.44,0.28432314]
[1764348640897,3.89,139.45,139.44,9.09426806]
[1764348641208,3.18,139.45,139.44,9.09426806]
[1764348641719,114.4502947,139.47,139.45,9.09426806]
[1764348641919,115.1602947,139.47,139.45,9.09426806]
[1764348642313,0.71,139.46,139.45,9.09426806]
[1764348644307,115.1602947,139.47,139.45,9.09426806]
[1764348645107,0.71,139.46,139.41,25.10487215]
[1764348645413,0.71,139.46,139.44,9.09426806]
[1764348646017,3.18,139.45,139.42,18.76406457]
[1764348646209,3.18,139.45,139.42,8.80994492]
[1764348646409,0.71,139.44,139.41,8.80994492]
[1764348646615,3.18,139.43,139.41,8.80994492]
[1764348647007,7.17251137,139.43,139.41,8.80994492]
[1764348647207,10.35251137,139.43,139.41,18.76406457]
[1764348647402,11.06251137,139.43,139.41,18.76406457]
[1764348649131,11.06251137,139.43,139.41,8.80994492]
[1764348649338,11.06251137,139.43,139.41,18.76406457]
[1764348649831,11.06251137,139.43,139.41,8.80994492]
[1764348650332,10.35251137,139.43,139.41,8.80994492]
[1764348650633,11.06251137,139.43,139.41,8.80994492]
[1764348650832,11.06251137,139.43,139.41,18.76406457]
[1764348651320,11.06251137,139.43,139.41,8.80994492]
[1764348651521,11.06251137,139.43,139.41,18.76406457]
[1764348651702,0.71,139.42,139.4,0.28432314]
[1764348651907,3.18,139.41,139.38,0.1]
[1764348652109,13.13411965,139.41,139.38,0.1]
[1764348652411,0.71,139.4,139.38,0.1]
[1764348652626,3.18,139.39,139.38,0.1]
[1764348652827,3.18,139.4,139.38,9.60426806]
[1764348653007,3.18,139.4,139.39,19.04838771]
[1764348654310,11.062617,139.42,139.39,19.04838771]
[1764348655435,0.71,139.41,139.39,19.04838771]
[1764348656119,11.06325104,139.41,139.39,19.04838771]
[1764348656523,10.35325104,139.41,139.39,9.09426806]
[1764348656713,10.35325104,139.41,139.39,19.04838771]
[1764348656714,11.06325104,139.41,139.39,19.04838771]
[1764348657120,10.35325104,139.41,139.39,19.04838771]
[1764348657636,44.04380271,139.43,139.39,19.04838771]
[1764348657637,7.17262566,139.42,139.4,9.95411965]
[1764348657935,10.35262566,139.42,139.4,9.95411965]
[1764348658136,0.71,139.41,139.4,8.95210649]
[1764348658315,0.71,139.41,139.39,9.95411965]
[1764348658716,28.28405587,139.42,139.38,19.14838771]
[1764348658925,0.71,139.41,139.38,19.14838771]
[1764348659118,0.71,139.41,139.39,9.95411965]
[1764348659627,7.88346866,139.41,139.39,9.95411965]
[1764348659812,0.71,139.41,139.39,9.95411965]
[1764348660211,3.18,139.4,139.38,0.1]
[1764348660634,0.71,139.39,139.38,0.1]
[1764348661338,7.88411579,139.39,139.38,0.1]
[1764348662312,17.83823544,139.39,139.38,0.1]
[1764348662533,27.89235509,139.39,139.38,0.1]
[1764348662713,17.93823544,139.39,139.38,0.1]
[1764348662916,11.06411579,139.39,139.38,0.1]
[1764348663421,7.88411579,139.39,139.38,0.1]
[1764348663622,11.06411579,139.39,139.38,0.1]
[1764348665414,7.17411579,139.39,139.38,0.1]
[1764348666026,7.17411579,139.39,139.38,2.50097792]
[1764348666634,107.28,139.4,139.38,2.50097792]
[1764348666635,107.28,139.4,139.39,9.09426806]
[1764348666827,104.1,139.4,139.39,11.49524598]
[1764348667512,3.18,139.42,139.4,0.28432314]
[1764348667721,11.49524598,139.44,139.42,9.09426806]
[1764348668025,10.35081148,139.46,139.44,9.09426806]
[1764348668349,11.07081148,139.46,139.45,2.40097792]
[1764348668718,11.07081148,139.46,139.44,0.28432314]
[1764348668923,0.72,139.45,139.44,9.09426806]
[1764348669123,11.07081148,139.46,139.44,11.49524598]
[1764348669418,10.35081148,139.46,139.44,9.09426806]
[1764348669618,11.07081148,139.46,139.44,9.09426806]
[1764348670345,3.18,139.46,139.44,9.09426806]
[1764348670944,10.35052037,139.46,139.44,9.09426806]
[1764348672643,11.07052037,139.46,139.44,9.09426806]
[1764348674843,36.63139468,139.5,139.46,8.80994492]
[1764348675139,3.18,139.49,139.46,8.80994492]
[1764348675341,11.02897268,139.49,139.46,8.80994492]
[1764348675549,0.68,139.48,139.46,8.80994492]
[1764348675720,7.16897268,139.49,139.46,8.80994492]
[1764348675919,11.02897268,139.49,139.46,8.80994492]
[1764348677433,104.1,139.5,139.49,0.28432314]
[1764348677723,10.34814115,139.51,139.49,0.28432314]
[1764348679065,10.34814115,139.51,139.46,0.28432314]
[1764348679066,3.08097792,139.5,139.46,0.28432314]
[1764348679361,3.18,139.49,139.46,0.28432314]
[1764348679731,3.86,139.49,139.46,0.28432314]
[1764348679934,11.02942424,139.49,139.46,0.28432314]
[1764348680357,11.02942424,139.49,139.43,2.40097792]
[1764348680358,3.08097792,139.48,139.43,2.40097792]
[1764348680642,3.08097792,139.48,139.44,8.80994492]
[1764348680857,0.68,139.47,139.44,0.28432314]
[1764348681058,0.68,139.47,139.43,8.80994492]
[1764348681226,3.08097792,139.47,139.43,8.80994492]
[1764348681440,3.18,139.46,139.43,8.80994492]
[1764348681644,3.86,139.46,139.44,0.14216157]
[1764348682031,7.17102904,139.45,139.44,0.28432314]
[1764348682834,132.37483241,139.48,139.44,3.09530106]
[1764348683048,133.05483241,139.48,139.44,3.09530106]
[1764348683557,10.34985946,139.48,139.45,11.62092284]
[1764348684266,10.34985946,139.48,139.45,18.79192369]
[1764348685255,11.02985946,139.48,139.45,18.38192369]
[1764348685942,11.02985946,139.48,139.45,15.98094577]
[1764348686450,10.34985946,139.48,139.45,18.38192369]
[1764348687652,10.34985946,139.48,139.45,15.98094577]
[1764348687849,11.02985946,139.48,139.45,15.98094577]
[1764348688851,7.84985946,139.48,139.45,15.98094577]
[1764348689266,7.84985946,139.48,139.45,8.80994492]
[1764348689664,7.16985946,139.48,139.45,8.80994492]
[1764348691058,107.96,139.49,139.45,11.62092284]
[1764348691259,107.28,139.49,139.47,9.09426806]
[1764348691451,104.1,139.49,139.47,9.09426806]
[1764348692029,0.68,139.51,139.47,9.09426806]
[1764348692262,0.68,139.5,139.47,9.09426806]
[1764348693137,7.84876881,139.5,139.47,9.09426806]
[1764348693943,0.68,139.5,139.47,9.09426806]
[1764348694459,7.84848899,139.5,139.47,9.09426806]
[1764348695058,2.40097792,139.49,139.47,9.09426806]
[1764348695243,7.16948666,139.48,139.44,11.49524598]
[1764348695566,7.16948666,139.48,139.44,18.66675193]
[1764348695858,7.84948666,139.48,139.44,9.36210649]
[1764348696056,0.68,139.47,139.45,0.14216157]
[1764348696262,10.34948666,139.48,139.44,11.21092284]
[1764348696455,11.02948666,139.48,139.44,18.79231563]
[1764348696762,11.02948666,139.48,139.45,9.09426806]
[1764348698764,11.02948666,139.48,139.47,0.28432314]
[1764348699289,11.02948666,139.48,139.42,3.18]
[1764348699561,2.40097792,139.45,139.43,8.80994492]
[1764348699739,12.75251697,139.45,139.42,0.28432314]
[1764348700059,3.08097792,139.44,139.39,8.80994492]
[1764348700268,2.40097792,139.43,139.38,0.1]
[1764348700436,2.40097792,139.42,139.38,9.05210649]
[1764348700638,2.40097792,139.42,139.38,8.90994492]
[1764348700639,3.86,139.42,139.38,8.90994492]
[1764348700954,2.40097792,139.4,139.38,0.1]
[1764348701138,3.18,139.39,139.38,0.1]
[1764348701340,3.86,139.39,139.38,0.1]
[1764348702464,7.8529685,139.42,139.38,0.51]
[1764348702647,7.8529685,139.42,139.39,0.28432314]
[1764348703163,0.68,139.41,139.38,0.1]
[1764348703352,3.18,139.4,139.38,0.1]
[1764348703863,0.68,139.39,139.38,0.1]
[1764348704165,16.308864,139.44,139.39,0.41]
[1764348704470,7.17012433,139.47,139.44,0.28432314]
[1764348704645,7.17012433,139.47,139.46,0.28432314]
[1764348704844,16.73855219,139.47,139.41,5.70842786]
[1764348705052,16.73855219,139.47,139.42,9.09426806]
[1764348705053,0.68,139.46,139.42,9.09426806]
[1764348705555,5.70842786,139.45,139.42,0.28432314]
[1764348705952,0.68,139.44,139.42,0.28432314]
[1764348706464,111.2713754,139.45,139.42,0.28432314]
[1764348706638,111.9513754,139.45,139.42,0.28432314]
[1764348707256,0.68,139.44,139.42,0.28432314]
[1764348708043,0.68,139.44,139.41,0.28432314]
[1764348710269,7.85162182,139.44,139.41,0.28432314]
[1764348710665,0.68,139.43,139.41,0.28432314]
[1764348711669,5.70842786,139.42,139.38,8.90994492]
[1764348711970,5.70842786,139.42,139.38,0.1]
[1764348711971,5.70842786,139.39,139.38,0.1]
[1764348712277,5.70842786,139.4,139.38,0.1]
[1764348712483,6.38842786,139.4,139.38,0.1]
[1764348712770,0.68,139.39,139.38,0.1]
[1764348712974,16.308864,139.42,139.38,0.1]
[1764348713270,3.18,139.41,139.38,0.1]
[1764348713774,10.35338187,139.41,139.38,0.38432314]
[1764348714364,11.03338187,139.41,139.38,0.38432314]
[1764348718353,11.03338187,139.41,139.38,0.1]
[1764348718354,6.38842786,139.4,139.38,0.1]
[1764348718754,0.68,139.39,139.38,0.1]
[1764348720073,6.38842786,139.39,139.38,0.1]
[1764348720976,13.56254365,139.39,139.38,0.1]
[1764348722056,7.85411579,139.39,139.38,0.1]
[1764348722278,13.56254365,139.39,139.38,0.1]
[1764348722671,7.85411579,139.39,139.38,0.1]
[1764348724671,111.95411579,139.39,139.38,0.1]
[1764348726182,117.66254365,139.39,139.38,0.1]
[1764348726566,115.70679627,139.39,139.38,0.1]
[1764348727289,118.88679627,139.39,139.38,0.1]
[1764348729080,115.13411579,139.39,139.38,0.1]
[1764348729305,118.88679627,139.39,139.38,0.1]
[1764348730759,14.78679627,139.39,139.38,0.1]
[1764348730966,14.78679627,139.39,139.36,0.1]
[1764348730967,32.72208574,139.39,139.36,0.1]
[1764348731272,3.75268048,139.37,139.36,0.1]
[1764348731468,6.93268048,139.37,139.36,0.1]
[1764348731680,7.65268048,139.37,139.36,0.1]
[1764348732069,14.82782577,139.37,139.36,0.1]
[1764348736889,14.82782577,139.37,139.35,0.1]
[1764348737078,4.47268048,139.36,139.35,0.1]
[1764348737988,16.308864,139.34,139.31,0.1]
[1764348738173,6.93268048,139.33,139.31,0.1]
[1764348738375,7.60268048,139.33,139.31,0.1]
[1764348738601,11.60040083,139.32,139.31,0.1]
[1764348738903,10.55049871,139.39,139.31,0.1]
[1764348738904,8.4088506,139.43,139.33,0.28432314]
[1764348739065,0.67,139.44,139.4,8.80994492]
[1764348739407,3.18,139.43,139.4,8.80994492]
[1764348739597,6.93268048,139.43,139.36,0.28]
[1764348739784,4.42268048,139.42,139.38,0.28432314]
[1764348740098,3.18,139.43,139.38,0.28432314]
[1764348740099,3.18,139.43,139.4,12.5626254]
[1764348740277,3.18,139.43,139.4,8.80994492]
[1764348740475,10.35252703,139.43,139.4,8.80994492]
[1764348740684,11.02252703,139.43,139.4,8.80994492]
[1764348741084,10.35252703,139.43,139.4,8.80994492]
[1764348741291,0.67,139.42,139.4,8.80994492]
[1764348742902,7.84261447,139.42,139.4,8.80994492]
[1764348743096,7.17261447,139.42,139.4,8.80994492]
[1764348744002,7.84261447,139.42,139.4,8.80994492]
[1764348746181,7.84261447,139.42,139.38,0.56432314]
[1764348746381,7.84261447,139.42,139.39,8.80994492]
[1764348748482,7.17261447,139.42,139.39,9.08994492]
[1764348748682,7.17261447,139.42,139.39,8.80994492]
[1764348748888,7.17261447,139.42,139.4,0.28432314]
[1764348749075,10.35224023,139.43,139.4,0.28432314]
[1764348749275,10.35224023,139.43,139.4,0.56432314]
[1764348750499,10.35224023,139.43,139.41,8.80994492]
[1764348750882,7.17224023,139.43,139.41,8.80994492]
[1764348751083,10.35224023,139.43,139.41,8.80994492]
[1764348751492,11.02224023,139.43,139.4,0.28432314]
[1764348752806,28.28238438,139.43,139.39,8.80994492]
[1764348753006,3.75268048,139.4,139.34,8.80994492]
[1764348753302,6.93268048,139.39,139.34,8.80994492]
[1764348753504,3.18,139.38,139.35,0.28432314]
[1764348754097,3.18,139.38,139.34,9.08994492]
[1764348754282,3.18,139.38,139.34,8.80994492]
[1764348754484,3.18,139.4,139.37,0.28432314]
[1764348755100,7.17411579,139.39,139.37,0.28432314]
[1764348755485,7.88411579,139.39,139.37,0.28432314]
[1764348755691,7.88411579,139.39,139.34,0.14216157]
[1764348755692,4.46268048,139.38,139.34,0.14216157]
[1764348755914,4.46268048,139.38,139.34,0.28432314]
[1764348756081,0.71,139.37,139.34,0.28432314]
[1764348756685,29.57208574,139.39,139.34,0.56432314]
[1764348756886,120.408864,139.42,139.34,0.56432314]
[1764348756887,3.18,139.41,139.34,0.56432314]
[1764348757097,14.8159425,139.41,139.36,4.03700362]
[1764348757290,11.06326202,139.41,139.36,4.03700362]
[1764348757510,0.71,139.4,139.36,4.31700362]
[1764348757814,11.06326202,139.41,139.36,13.12694854]
[1764348757990,7.17411579,139.39,139.36,13.12694854]
[1764348758909,7.17411579,139.39,139.36,9.09426806]
[1764348759101,7.17411579,139.39,139.36,9.37426806]
[1764348760808,7.17339345,139.41,139.37,15.98509021]
[1764348760983,10.35339345,139.41,139.37,20.01777069]
[1764348761408,10.35339345,139.41,139.39,0.28432314]
[1764348761798,10.35339345,139.41,139.4,8.80994492]
[1764348762110,111.2726032,139.42,139.4,8.80994492]
[1764348762310,111.2726032,139.42,139.4,9.08994492]
[1764348762688,111.2726032,139.42,139.4,8.80994492]
[1764348763806,0.71,139.41,139.39,0.28432314]
[1764348764002,7.88330458,139.41,139.39,0.28432314]
[1764348765600,7.17330458,139.41,139.39,0.28432314]
[1764348772100,111.27265685,139.42,139.4,0.28432314]
[1764348772324,115.16265685,139.42,139.4,0.28432314]
[1764348776603,114.45265685,139.42,139.4,0.28432314]
[1764348776802,115.16265685,139.42,139.4,0.28432314]
[1764348778332,111.98265685,139.42,139.4,0.28432314]
[1764348779122,104.1,139.42,139.4,9.09426806]
[1764348779920,104.81,139.42,139.4,9.09426806]
[1764348780234,104.1,139.42,139.4,16.26763644]
[1764348780928,7.17174676,139.44,139.4,16.26763644]
[1764348781105,7.17174676,139.44,139.42,0.28432314]
[1764348781511,11.63442724,139.44,139.42,0.28432314]
[1764348781816,4.46268048,139.43,139.41,0.28432314]
[1764348782211,0.71,139.43,139.41,0.28432314]
[1764348782604,7.88234878,139.43,139.41,0.28432314]
[1764348783211,7.17234878,139.43,139.41,0.28432314]
[1764348784231,10.35167116,139.44,139.41,0.56432314]
[1764348784431,7.88120083,139.45,139.43,0.28432314]
[1764348784636,7.17120083,139.45,139.43,0.28432314]
[1764348784933,7.88120083,139.45,139.43,0.28432314]
[1764348785735,111.27065752,139.46,139.45,8.80994492]
[1764348786243,21.77249754,139.49,139.46,0.28432314]
[1764348787126,7.83948666,139.48,139.46,0.28432314]
[1764348787316,7.83948666,139.48,139.46,9.09426806]
[1764348788334,120.408864,139.5,139.46,9.09426806]
[1764348788542,0.2,139.55,139.49,2.68171015]
[1764348788723,0.2,139.55,139.54,11.49165507]
[1764348788921,0.2,139.55,139.54,12.27426806]
[1764348789236,0.2,139.55,139.54,21.83805896]
[1764348789440,0.2,139.55,139.54,16.26067195]
[1764348790233,0.2,139.55,139.54,9.09426806]
[1764348790618,0.2,139.55,139.54,18.65805896]
[1764348791045,0.2,139.55,139.54,9.09426806]
[1764348791418,0.2,139.55,139.54,11.49165507]
[1764348792244,0.2,139.55,139.54,9.09426806]
[1764348792548,0.87,139.55,139.54,8.80994492]
[1764348793118,0.2,139.55,139.54,8.80994492]
[1764348794037,0.2,139.55,139.48,17.92345998]
[1764348794038,26.74214137,139.55,139.44,33.55992914]
[1764348794226,2.39738701,139.51,139.46,2.39738701]
[1764348794426,2.39738701,139.51,139.47,9.09426806]
[1764348794624,0.67,139.5,139.47,9.09426806]
[1764348795617,0.67,139.5,139.47,16.26396978]
[1764348796338,0.67,139.52,139.47,18.66135679]
[1764348796538,7.16640389,139.54,139.49,0.28432314]
[1764348796539,0.67,139.51,139.49,0.28432314]
[1764348799049,7.16762482,139.52,139.49,0.28432314]
[1764348799237,7.83762482,139.52,139.49,0.28432314]
[1764348799635,0.67,139.52,139.49,0.28432314]
[1764348799943,0.67,139.51,139.49,0.28432314]
[1764348801938,9.56584579,139.5,139.47,8.80994492]
[1764348802143,7.16845878,139.5,139.47,8.80994492]
[1764348802336,0.66,139.49,139.47,8.80994492]
[1764348805219,2.39738701,139.48,139.43,17.92965928]
[1764348805437,2.39738701,139.48,139.45,0.28432314]
[1764348805633,0.66,139.47,139.45,0.28432314]
[1764348807157,10.22786151,139.47,139.43,8.80994492]
[1764348807526,0.66,139.46,139.43,8.80994492]
[1764348807724,0.66,139.46,139.44,0.14216157]
[1764348807946,0.66,139.46,139.44,0.28432314]
[1764348809250,7.83053803,139.46,139.44,0.28432314]
[1764348810863,0.66,139.46,139.44,0.28432314]
[1764348811548,104.1,139.47,139.44,9.85312826]
[1764348812153,3.84,139.5,139.47,9.09426806]
[1764348812355,3.84,139.5,139.47,0.28432314]
[1764348813031,3.84,139.5,139.47,9.09426806]
[1764348813258,11.00867957,139.5,139.47,9.09426806]
[1764348813759,7.82867957,139.5,139.47,9.09426806]
[1764348814730,7.82867957,139.5,139.46,9.09426806]
[1764348815459,7.82867957,139.5,139.46,16.26467668]
[1764348817761,7.16867957,139.5,139.46,16.26467668]